[Event "Early-Titled-Tuesday-Blitz-May-28-2024"]
[Site "Chess.com"]
[Date "2024.05.28"]
[Round "2"]
[White "KubaGepard"]
[Black "mind1mover"]
[Result "0-1"]
[WhiteElo "2572"]
[BlackElo "2849"]
[TimeControl "180+1"]
[EndTime "8:18:29 PDT"]
[Termination "mind1mover won by checkmate"]

1. d4 {[%clk 0:03:00.9]} 1... d5 {[%clk 0:02:59.9]} 2. Nf3 {[%clk 0:03:00.8]}
2... Nc6 {[%clk 0:03:00.3]} 3. g3 {[%clk 0:02:59.1]} 3... Bf5 {[%clk 0:02:53.1]}
4. Bg2 {[%clk 0:02:57.8]} 4... Nb4 {[%clk 0:02:52.4]} 5. Na3 {[%clk 0:02:49.7]}
5... e6 {[%clk 0:02:52.5]} 6. c3 {[%clk 0:02:47.1]} 6... Nc6 {[%clk 0:02:52]} 7.
Qa4 {[%clk 0:02:47.7]} 7... Bxa3 {[%clk 0:02:49]} 8. Qxa3 {[%clk 0:02:45]} 8...
Be4 {[%clk 0:02:49.2]} 9. O-O {[%clk 0:02:43.4]} 9... Nge7 {[%clk 0:02:49.2]}
10. Bh3 {[%clk 0:02:42]} 10... Bf5 {[%clk 0:02:44.6]} 11. Bg2 {[%clk 0:02:39.2]}
11... Be4 {[%clk 0:02:44.7]} 12. Bh3 {[%clk 0:02:38.5]} 12... O-O {[%clk
0:02:32.8]} 13. Nd2 {[%clk 0:02:34.3]} 13... Bg6 {[%clk 0:02:32.1]} 14. Bg2
{[%clk 0:02:32.6]} 14... e5 {[%clk 0:02:32.6]} 15. dxe5 {[%clk 0:02:29.2]} 15...
Nxe5 {[%clk 0:02:33.5]} 16. Qb3 {[%clk 0:02:27.3]} 16... a5 {[%clk 0:02:21.3]}
17. a4 {[%clk 0:02:23]} 17... Ra6 {[%clk 0:02:10.8]} 18. e4 {[%clk 0:02:12.8]}
18... Rb6 {[%clk 0:01:35.2]} 19. Qc2 {[%clk 0:02:09.6]} 19... dxe4 {[%clk
0:01:20]} 20. Nxe4 {[%clk 0:02:06.8]} 20... Qd3 {[%clk 0:01:20.5]} 21. Qxd3
{[%clk 0:01:23.8]} 21... Nxd3 {[%clk 0:01:21.4]} 22. Rd1 {[%clk 0:01:16]} 22...
Nxc1 {[%clk 0:01:20.8]} 23. Raxc1 {[%clk 0:01:12.6]} 23... Rxb2 {[%clk
0:01:13.1]} 24. Rd7 {[%clk 0:01:12.1]} 24... Re8 {[%clk 0:01:06]} 25. Rcd1
{[%clk 0:01:01.3]} 25... h6 {[%clk 0:00:48.9]} 26. Nc5 {[%clk 0:00:48.5]} 26...
Nf5 {[%clk 0:00:41.8]} 27. Rxc7 {[%clk 0:00:45.1]} 27... Ree2 {[%clk 0:00:34.4]}
28. Bxb7 {[%clk 0:00:39.3]} 28... Bh5 {[%clk 0:00:29.2]} 29. Rd8+ {[%clk
0:00:33.6]} 29... Kh7 {[%clk 0:00:29.4]} 30. Nd3 {[%clk 0:00:32.8]} 30... Rbd2
{[%clk 0:00:13.4]} 31. Rcc8 {[%clk 0:00:10.4]} 31... Rd1+ {[%clk 0:00:12.9]} 32.
Kg2 {[%clk 0:00:10.4]} 32... Ne3+ {[%clk 0:00:13.3]} 33. Kh3 {[%clk 0:00:10.8]}
33... Bg4+ {[%clk 0:00:13.9]} 34. Kh4 {[%clk 0:00:11.3]} 34... g5# {[%clk
0:00:14.6]} 0-1

[Event "Early-Titled-Tuesday-Blitz-May-28-2024"]
[Site "Chess.com"]
[Date "2024.05.28"]
[Round "2"]
[White "ljuks68"]
[Black "Pintacara"]
[Result "0-1"]
[WhiteElo "2385"]
[BlackElo "2643"]
[TimeControl "180+1"]
[EndTime "8:18:29 PDT"]
[Termination "Pintacara won on time"]

1. e4 {[%clk 0:03:00.9]} 1... c5 {[%clk 0:02:58.9]} 2. Nf3 {[%clk 0:03:00.9]}
2... e6 {[%clk 0:02:59.5]} 3. d4 {[%clk 0:03:01.2]} 3... cxd4 {[%clk 0:03:00.4]}
4. Nxd4 {[%clk 0:03:01.6]} 4... Nc6 {[%clk 0:03:01.3]} 5. Nc3 {[%clk 0:03:01.8]}
5... Qc7 {[%clk 0:03:02]} 6. Be3 {[%clk 0:02:59.2]} 6... a6 {[%clk 0:03:02.6]}
7. Qd2 {[%clk 0:02:59.1]} 7... Nf6 {[%clk 0:03:02.3]} 8. f3 {[%clk 0:02:59.5]}
8... b5 {[%clk 0:03:02.8]} 9. O-O-O {[%clk 0:02:59.6]} 9... Bb7 {[%clk
0:03:02.6]} 10. g4 {[%clk 0:02:56.9]} 10... h6 {[%clk 0:03:02.6]} 11. h4 {[%clk
0:02:55.7]} 11... Ne5 {[%clk 0:03:01.2]} 12. Kb1 {[%clk 0:02:44.8]} 12... d5
{[%clk 0:03:00.5]} 13. Bf4 {[%clk 0:02:29.1]} 13... b4 {[%clk 0:02:40.4]} 14.
Nce2 {[%clk 0:02:11.7]} 14... dxe4 {[%clk 0:02:38.2]} 15. fxe4 {[%clk
0:01:56.7]} 15... Nxe4 {[%clk 0:02:14.1]} 16. Qe1 {[%clk 0:01:37.2]} 16... Bd6
{[%clk 0:01:53.5]} 17. Rh3 {[%clk 0:01:30]} 17... Bd5 {[%clk 0:01:37.4]} 18. Nf5
{[%clk 0:01:12.8]} 18... exf5 {[%clk 0:01:26.3]} 19. Rxd5 {[%clk 0:01:11.9]}
19... fxg4 {[%clk 0:01:26.1]} 20. Re3 {[%clk 0:01:07.5]} 20... f5 {[%clk
0:01:20.3]} 21. Nd4 {[%clk 0:01:04.7]} 21... O-O {[%clk 0:00:53.8]} 22. Nxf5
{[%clk 0:00:34.7]} 22... Rxf5 {[%clk 0:00:53.2]} 23. Rxe4 {[%clk 0:00:34.8]}
23... Raf8 {[%clk 0:00:49.7]} 24. Rdxe5 {[%clk 0:00:15.8]} 24... Bxe5 {[%clk
0:00:47.2]} 25. Bc4+ {[%clk 0:00:16]} 25... Kh8 {[%clk 0:00:26.6]} 26. Bxe5
{[%clk 0:00:14.6]} 26... Rxe5 {[%clk 0:00:27.2]} 27. Rxe5 {[%clk 0:00:14.9]}
27... Qxc4 {[%clk 0:00:27.5]} 28. Re2 {[%clk 0:00:06.9]} 28... g3 {[%clk
0:00:25.5]} 29. b3 {[%clk 0:00:07.3]} 29... Qg4 {[%clk 0:00:25]} 30. Rg2 {[%clk
0:00:05.5]} 30... Rf3 {[%clk 0:00:23.4]} 31. Qe8+ {[%clk 0:00:04.8]} 31... Kh7
{[%clk 0:00:24]} 32. h5 {[%clk 0:00:05.2]} 32... Rf1+ {[%clk 0:00:22.5]} 33. Kb2
{[%clk 0:00:04.9]} 33... Qd4+ {[%clk 0:00:23.2]} 0-1

[Event "Early-Titled-Tuesday-Blitz-May-28-2024"]
[Site "Chess.com"]
[Date "2024.05.28"]
[Round "2"]
[White "sammartin99"]
[Black "Casper"]
[Result "0-1"]
[WhiteElo "2286"]
[BlackElo "2514"]
[TimeControl "180+1"]
[EndTime "8:18:30 PDT"]
[Termination "Casper won on time"]

1. d4 {[%clk 0:03:00.9]} 1... d5 {[%clk 0:02:59.6]} 2. c4 {[%clk 0:02:59.4]}
2... Nf6 {[%clk 0:02:59.3]} 3. cxd5 {[%clk 0:02:58.3]} 3... Nxd5 {[%clk
0:02:56.5]} 4. e4 {[%clk 0:02:57.3]} 4... Nb6 {[%clk 0:02:55.6]} 5. Nc3 {[%clk
0:02:54.9]} 5... e5 {[%clk 0:02:55.1]} 6. d5 {[%clk 0:02:49.2]} 6... Bc5 {[%clk
0:02:53.9]} 7. Nf3 {[%clk 0:02:39.4]} 7... O-O {[%clk 0:02:53.8]} 8. Be2 {[%clk
0:02:29.5]} 8... c6 {[%clk 0:02:38.4]} 9. O-O {[%clk 0:02:26.5]} 9... Re8 {[%clk
0:02:33.9]} 10. Be3 {[%clk 0:01:50.1]} 10... Bxe3 {[%clk 0:02:29.8]} 11. fxe3
{[%clk 0:01:51]} 11... Bg4 {[%clk 0:02:18.1]} 12. Qb3 {[%clk 0:01:13.8]} 12...
Qd6 {[%clk 0:01:32.5]} 13. Rac1 {[%clk 0:01:08.1]} 13... Qh6 {[%clk 0:01:25.3]}
14. Nd1 {[%clk 0:00:29.2]} 14... cxd5 {[%clk 0:00:51.1]} 15. exd5 {[%clk
0:00:30.1]} 15... N8d7 {[%clk 0:00:51.7]} 16. h3 {[%clk 0:00:18.2]} 16... Bxf3
{[%clk 0:00:42.4]} 17. Bxf3 {[%clk 0:00:16.5]} 17... e4 {[%clk 0:00:42.6]} 18.
Be2 {[%clk 0:00:16.3]} 18... Nf6 {[%clk 0:00:38.8]} 19. d6 {[%clk 0:00:12.9]}
19... Rad8 {[%clk 0:00:39.3]} 20. Rc7 {[%clk 0:00:11.3]} 20... Qg6 {[%clk
0:00:32.3]} 21. Rxb7 {[%clk 0:00:08.3]} 21... Rxd6 {[%clk 0:00:29.6]} 22. Rxa7
{[%clk 0:00:08.6]} 22... Nbd7 {[%clk 0:00:28]} 23. Nf2 {[%clk 0:00:04.6]} 23...
Rb8 {[%clk 0:00:20.4]} 24. Qa3 {[%clk 0:00:02.8]} 24... Rd2 {[%clk 0:00:18.7]}
25. Bg4 {[%clk 0:00:01.6]} 25... Ne5 {[%clk 0:00:14.1]} 26. Qe7 {[%clk 0:00:01]}
26... Nc6 {[%clk 0:00:11.3]} 27. Qc7 {[%clk 0:00:01]} 27... Nd5 {[%clk
0:00:09.2]} 0-1

[Event "Early-Titled-Tuesday-Blitz-May-28-2024"]
[Site "Chess.com"]
[Date "2024.05.28"]
[Round "2"]
[White "Chessmissile07"]
[Black "Sondremelaa"]
[Result "1-0"]
[WhiteElo "2852"]
[BlackElo "2575"]
[TimeControl "180+1"]
[EndTime "8:18:32 PDT"]
[Termination "Chessmissile07 won by resignation"]

1. a3 {[%clk 0:03:00.9]} 1... e5 {[%clk 0:02:58.6]} 2. c4 {[%clk 0:02:59.1]}
2... Nf6 {[%clk 0:02:56.9]} 3. Nc3 {[%clk 0:02:57.8]} 3... g6 {[%clk 0:02:52]}
4. g3 {[%clk 0:02:57]} 4... Bg7 {[%clk 0:02:51.9]} 5. Bg2 {[%clk 0:02:57.4]}
5... O-O {[%clk 0:02:52]} 6. d3 {[%clk 0:02:53.5]} 6... c6 {[%clk 0:02:49.1]} 7.
Nf3 {[%clk 0:02:53.2]} 7... Re8 {[%clk 0:02:46.9]} 8. O-O {[%clk 0:02:46.2]}
8... d6 {[%clk 0:02:22.7]} 9. Bg5 {[%clk 0:02:28.1]} 9... h6 {[%clk 0:02:21.1]}
10. Bxf6 {[%clk 0:02:28]} 10... Qxf6 {[%clk 0:02:17.6]} 11. Nd2 {[%clk
0:02:26.7]} 11... Be6 {[%clk 0:02:13.5]} 12. b4 {[%clk 0:02:24.6]} 12... Nd7
{[%clk 0:01:56.1]} 13. Rb1 {[%clk 0:02:23.7]} 13... Qe7 {[%clk 0:01:50.4]} 14.
b5 {[%clk 0:02:20.8]} 14... Rec8 {[%clk 0:01:29.1]} 15. bxc6 {[%clk 0:02:10.2]}
15... bxc6 {[%clk 0:01:30]} 16. Rb7 {[%clk 0:02:09.7]} 16... Qd8 {[%clk
0:01:29.3]} 17. Nde4 {[%clk 0:01:51.2]} 17... Bf8 {[%clk 0:01:18]} 18. d4 {[%clk
0:01:51.2]} 18... Bxc4 {[%clk 0:01:09.6]} 19. Rxd7 {[%clk 0:01:50.9]} 19... Qa5
{[%clk 0:00:51.3]} 20. d5 {[%clk 0:01:25.6]} 20... c5 {[%clk 0:00:23.6]} 21. Qc2
{[%clk 0:00:43.6]} 21... Rc7 {[%clk 0:00:23.6]} 22. Rxc7 {[%clk 0:00:34.4]}
22... Qxc7 {[%clk 0:00:23.7]} 23. Nd2 {[%clk 0:00:33.1]} 23... Ba6 {[%clk
0:00:22.5]} 24. Qa4 {[%clk 0:00:31.2]} 24... Bb7 {[%clk 0:00:20.2]} 25. Rb1
{[%clk 0:00:30.4]} 25... f5 {[%clk 0:00:20.2]} 26. Nc4 {[%clk 0:00:29.9]} 26...
e4 {[%clk 0:00:19.6]} 27. Qa5 {[%clk 0:00:22.6]} 27... Qxa5 {[%clk 0:00:15]} 28.
Nxa5 {[%clk 0:00:23.5]} 28... Ba6 {[%clk 0:00:15.5]} 29. e3 {[%clk 0:00:21.5]}
29... Bg7 {[%clk 0:00:15.7]} 30. Nb5 {[%clk 0:00:19.9]} 30... Rb8 {[%clk
0:00:14.1]} 31. Bf1 {[%clk 0:00:20.3]} 31... Be5 {[%clk 0:00:12.1]} 32. Nc6
{[%clk 0:00:20]} 32... Rb7 {[%clk 0:00:07.5]} 33. a4 {[%clk 0:00:19.4]} 33...
Kf7 {[%clk 0:00:06.6]} 34. Nxe5+ {[%clk 0:00:19.1]} 34... dxe5 {[%clk
0:00:07.5]} 35. Nd6+ {[%clk 0:00:19.2]} 1-0

[Event "Early-Titled-Tuesday-Blitz-May-28-2024"]
[Site "Chess.com"]
[Date "2024.05.28"]
[Round "2"]
[White "ValeriyGrinev"]
[Black "CarlosAlbornoz"]
[Result "0-1"]
[WhiteElo "2572"]
[BlackElo "2840"]
[TimeControl "180+1"]
[EndTime "8:18:33 PDT"]
[Termination "CarlosAlbornoz won by resignation"]

1. e4 {[%clk 0:03:00.9]} 1... c5 {[%clk 0:03:00]} 2. Nc3 {[%clk 0:02:59.6]} 2...
e6 {[%clk 0:02:58.9]} 3. g3 {[%clk 0:02:59.5]} 3... Nc6 {[%clk 0:02:58.9]} 4.
Bg2 {[%clk 0:03:00]} 4... g6 {[%clk 0:02:58.1]} 5. d3 {[%clk 0:03:00.5]} 5...
Bg7 {[%clk 0:02:58.3]} 6. Nge2 {[%clk 0:03:00.1]} 6... Nge7 {[%clk 0:02:57.7]}
7. Be3 {[%clk 0:02:57.7]} 7... Nd4 {[%clk 0:02:57.9]} 8. Qd2 {[%clk 0:02:56.3]}
8... d6 {[%clk 0:02:50.8]} 9. f4 {[%clk 0:02:56.7]} 9... O-O {[%clk 0:02:45.1]}
10. Bf2 {[%clk 0:02:56.3]} 10... Rb8 {[%clk 0:02:44]} 11. Nxd4 {[%clk
0:02:56.2]} 11... cxd4 {[%clk 0:02:44.1]} 12. Ne2 {[%clk 0:02:55.9]} 12... e5
{[%clk 0:02:42.2]} 13. c3 {[%clk 0:02:55.1]} 13... dxc3 {[%clk 0:02:38]} 14.
bxc3 {[%clk 0:02:54.2]} 14... b6 {[%clk 0:02:33.7]} 15. a4 {[%clk 0:02:53]}
15... Bb7 {[%clk 0:02:32.6]} 16. O-O {[%clk 0:02:51.2]} 16... d5 {[%clk
0:02:32.8]} 17. fxe5 {[%clk 0:02:44.6]} 17... dxe4 {[%clk 0:02:33.1]} 18. Bd4
{[%clk 0:02:16.3]} 18... exd3 {[%clk 0:02:31.3]} 19. Nf4 {[%clk 0:02:10.9]}
19... Bxg2 {[%clk 0:02:31]} 20. Qxg2 {[%clk 0:02:03.5]} 20... Nf5 {[%clk
0:02:05]} 21. Qe4 {[%clk 0:02:01.8]} 21... Qd7 {[%clk 0:01:57.1]} 22. Qxd3
{[%clk 0:01:39.5]} 22... Rbd8 {[%clk 0:01:51.9]} 23. Rfd1 {[%clk 0:01:36.5]}
23... Rfe8 {[%clk 0:01:45.6]} 24. Qb5 {[%clk 0:01:34.3]} 24... Bxe5 {[%clk
0:01:35.3]} 25. Bxe5 {[%clk 0:01:31.6]} 25... Qxb5 {[%clk 0:01:35]} 26. axb5
{[%clk 0:01:29.6]} 26... Rxd1+ {[%clk 0:01:35.2]} 27. Rxd1 {[%clk 0:01:29.6]}
27... Rxe5 {[%clk 0:01:36.1]} 28. c4 {[%clk 0:01:28.3]} 28... Ne3 {[%clk
0:01:30.6]} 29. Rd8+ {[%clk 0:01:26.7]} 29... Kg7 {[%clk 0:01:30.6]} 30. Rc8
{[%clk 0:01:27.4]} 30... Rc5 {[%clk 0:01:22.3]} 31. Rxc5 {[%clk 0:01:22.8]}
31... bxc5 {[%clk 0:01:23.2]} 32. Nd3 {[%clk 0:01:22.5]} 32... Nxc4 {[%clk
0:01:23.5]} 33. Nxc5 {[%clk 0:01:22.7]} 33... Nd6 {[%clk 0:01:23.9]} 34. Kf2
{[%clk 0:01:00.4]} 34... Nxb5 {[%clk 0:01:23.7]} 35. Ke3 {[%clk 0:01:01.3]}
35... f5 {[%clk 0:01:22.2]} 36. Kd3 {[%clk 0:00:57.2]} 36... Kf6 {[%clk
0:01:22.1]} 37. Kc4 {[%clk 0:00:57.4]} 37... Nd6+ {[%clk 0:01:22.1]} 38. Kd5
{[%clk 0:00:58]} 38... Ne4 {[%clk 0:01:22.1]} 39. Nd7+ {[%clk 0:00:56.8]} 39...
Kg5 {[%clk 0:01:22.1]} 40. Nf8 {[%clk 0:00:57.1]} 40... h5 {[%clk 0:01:16.5]}
41. Ke5 {[%clk 0:00:54.5]} 41... a5 {[%clk 0:01:12.6]} 42. Ne6+ {[%clk
0:00:50.7]} 42... Kg4 {[%clk 0:01:08]} 43. Nf4 {[%clk 0:00:50.3]} 43... a4
{[%clk 0:01:01.9]} 44. Nd5 {[%clk 0:00:27.4]} 44... a3 {[%clk 0:00:59.4]} 45.
Nb4 {[%clk 0:00:25.3]} 45... Nc3 {[%clk 0:00:56.2]} 46. Nc2 {[%clk 0:00:25.3]}
46... a2 {[%clk 0:00:54.1]} 47. Ne3+ {[%clk 0:00:25.9]} 47... Kh3 {[%clk
0:00:52.5]} 48. Nc2 {[%clk 0:00:26.8]} 48... Kxh2 {[%clk 0:00:52.5]} 49. Kf4
{[%clk 0:00:26.2]} 49... Kg2 {[%clk 0:00:50.9]} 50. Na1 {[%clk 0:00:25.2]} 50...
Nd5+ {[%clk 0:00:48.8]} 51. Kg5 {[%clk 0:00:24.1]} 51... Kxg3 {[%clk 0:00:48.8]}
52. Kxg6 {[%clk 0:00:23.7]} 52... h4 {[%clk 0:00:48.7]} 53. Kxf5 {[%clk
0:00:24.6]} 53... h3 {[%clk 0:00:49.3]} 54. Ke4 {[%clk 0:00:25.2]} 54... h2
{[%clk 0:00:48.6]} 55. Kxd5 {[%clk 0:00:25.9]} 55... h1=Q+ {[%clk 0:00:48.4]}
56. Kc4 {[%clk 0:00:26.8]} 56... Qxa1 {[%clk 0:00:48.4]} 0-1

[Event "Early-Titled-Tuesday-Blitz-May-28-2024"]
[Site "Chess.com"]
[Date "2024.05.28"]
[Round "2"]
[White "DishonorOnYourCow"]
[Black "francyIM"]
[Result "1-0"]
[WhiteElo "2583"]
[BlackElo "2805"]
[TimeControl "180+1"]
[EndTime "8:18:34 PDT"]
[Termination "DishonorOnYourCow won by resignation"]

1. d4 {[%clk 0:03:00.9]} 1... Nf6 {[%clk 0:02:06.5]} 2. c4 {[%clk 0:03:00.4]}
2... g6 {[%clk 0:02:02.8]} 3. Nc3 {[%clk 0:03:00.2]} 3... Bg7 {[%clk 0:02:03.1]}
4. e4 {[%clk 0:03:00.5]} 4... d6 {[%clk 0:02:03.5]} 5. f4 {[%clk 0:03:01.1]}
5... Na6 {[%clk 0:02:01.3]} 6. Nf3 {[%clk 0:03:01.2]} 6... c5 {[%clk 0:02:01.6]}
7. d5 {[%clk 0:03:00.5]} 7... O-O {[%clk 0:02:01.6]} 8. Bd3 {[%clk 0:02:59.6]}
8... e6 {[%clk 0:02:01.9]} 9. dxe6 {[%clk 0:02:57.8]} 9... Bxe6 {[%clk
0:02:01.8]} 10. f5 {[%clk 0:02:57.4]} 10... Bd7 {[%clk 0:02:01.6]} 11. O-O
{[%clk 0:02:57.3]} 11... Bc6 {[%clk 0:02:01.8]} 12. Bg5 {[%clk 0:02:47.9]} 12...
Re8 {[%clk 0:02:00.4]} 13. Nd5 {[%clk 0:02:45.5]} 13... Bxd5 {[%clk 0:02:00.3]}
14. exd5 {[%clk 0:02:44.9]} 14... Qb6 {[%clk 0:01:59.2]} 15. fxg6 {[%clk
0:02:40.3]} 15... fxg6 {[%clk 0:01:58.7]} 16. Qc1 {[%clk 0:01:46]} 16... Ne4
{[%clk 0:01:43.6]} 17. Bxe4 {[%clk 0:01:38.1]} 17... Rxe4 {[%clk 0:01:42.4]} 18.
Rb1 {[%clk 0:01:26]} 18... Rae8 {[%clk 0:01:40.3]} 19. Bh6 {[%clk 0:01:23.6]}
19... Bf6 {[%clk 0:01:07.5]} 20. Ng5 {[%clk 0:01:18.6]} 20... Bxg5 {[%clk
0:01:05.6]} 21. Qxg5 {[%clk 0:01:16.2]} 21... Qd8 {[%clk 0:01:04.7]} 22. Rf6
{[%clk 0:01:01.4]} 22... Qe7 {[%clk 0:00:37.3]} 23. Rbf1 {[%clk 0:00:53.2]}
23... Re1 {[%clk 0:00:36.1]} 24. Qf4 {[%clk 0:00:11.8]} 24... Rxf1+ {[%clk
0:00:31.4]} 25. Qxf1 {[%clk 0:00:12.7]} 25... Nc7 {[%clk 0:00:25]} 26. h4 {[%clk
0:00:11.7]} 26... b5 {[%clk 0:00:14.8]} 27. h5 {[%clk 0:00:11.6]} 27... bxc4
{[%clk 0:00:14.9]} 28. hxg6 {[%clk 0:00:11.4]} 28... Nxd5 {[%clk 0:00:14.4]} 29.
Rf7 {[%clk 0:00:09.1]} 29... Qe1 {[%clk 0:00:12.5]} 30. Rf8+ {[%clk 0:00:07.6]}
30... Rxf8 {[%clk 0:00:13]} 31. Qxe1 {[%clk 0:00:08]} 31... hxg6 {[%clk
0:00:12.1]} 32. Qe6+ {[%clk 0:00:08]} 32... Rf7 {[%clk 0:00:12.2]} 33. Qxd5
{[%clk 0:00:08.2]} 1-0

[Event "Early-Titled-Tuesday-Blitz-May-28-2024"]
[Site "Chess.com"]
[Date "2024.05.28"]
[Round "2"]
[White "Gryffindorac8"]
[Black "olawsson"]
[Result "1-0"]
[WhiteElo "2470"]
[BlackElo "2131"]
[TimeControl "180+1"]
[EndTime "8:18:35 PDT"]
[Termination "Gryffindorac8 won on time"]

1. d4 {[%clk 0:03:00.9]} 1... d6 {[%clk 0:02:59.5]} 2. e4 {[%clk 0:02:59]} 2...
Nc6 {[%clk 0:02:56.9]} 3. Nf3 {[%clk 0:02:52.9]} 3... Nf6 {[%clk 0:02:56]} 4.
Bd3 {[%clk 0:02:37.8]} 4... Bg4 {[%clk 0:02:53.1]} 5. c3 {[%clk 0:02:36.4]} 5...
e5 {[%clk 0:02:52]} 6. d5 {[%clk 0:02:34.4]} 6... Nb8 {[%clk 0:02:51]} 7. Nbd2
{[%clk 0:02:33.4]} 7... Be7 {[%clk 0:02:33.4]} 8. Qb3 {[%clk 0:02:23.1]} 8...
Bc8 {[%clk 0:02:09.1]} 9. O-O {[%clk 0:02:13.2]} 9... O-O {[%clk 0:02:07.5]} 10.
Qc2 {[%clk 0:02:00.4]} 10... Nbd7 {[%clk 0:01:59.6]} 11. b4 {[%clk 0:01:41.3]}
11... a5 {[%clk 0:01:53.7]} 12. a3 {[%clk 0:01:29.5]} 12... c6 {[%clk
0:01:43.1]} 13. Qb3 {[%clk 0:00:51.3]} 13... cxd5 {[%clk 0:01:18.1]} 14. exd5
{[%clk 0:00:52.2]} 14... Nb6 {[%clk 0:01:16.9]} 15. bxa5 {[%clk 0:00:29.8]}
15... Nbxd5 {[%clk 0:01:07.4]} 16. Ne4 {[%clk 0:00:14.8]} 16... Rxa5 {[%clk
0:00:38.2]} 17. Nxf6+ {[%clk 0:00:13.9]} 17... Nxf6 {[%clk 0:00:37.2]} 18. Bc2
{[%clk 0:00:10.2]} 18... Qc7 {[%clk 0:00:27.7]} 19. Be3 {[%clk 0:00:10]} 19...
Be6 {[%clk 0:00:27.5]} 20. Qb2 {[%clk 0:00:08.1]} 20... Nd5 {[%clk 0:00:27.5]}
21. Bd2 {[%clk 0:00:04.4]} 21... Rc8 {[%clk 0:00:22]} 22. Bb3 {[%clk 0:00:01.3]}
22... Nxc3 {[%clk 0:00:08.3]} 23. Bxc3 {[%clk 0:00:01.4]} 23... Qxc3 {[%clk
0:00:07.7]} 24. Qxc3 {[%clk 0:00:01.9]} 24... Rxc3 {[%clk 0:00:08.3]} 25. Bxe6
{[%clk 0:00:02.6]} 25... fxe6 {[%clk 0:00:08.9]} 26. Rab1 {[%clk 0:00:03.1]}
26... Rc7 {[%clk 0:00:04.8]} 27. Rb3 {[%clk 0:00:02.8]} 27... Bf6 {[%clk
0:00:01.3]} 28. Rfb1 {[%clk 0:00:02.7]} 1-0

[Event "Early-Titled-Tuesday-Blitz-May-28-2024"]
[Site "Chess.com"]
[Date "2024.05.28"]
[Round "2"]
[White "yobdc"]
[Black "Willi_Skibbe"]
[Result "1-0"]
[WhiteElo "2512"]
[BlackElo "2275"]
[TimeControl "180+1"]
[EndTime "8:18:36 PDT"]
[Termination "yobdc won on time"]

1. e4 {[%clk 0:02:57.7]} 1... e5 {[%clk 0:02:59]} 2. Nf3 {[%clk 0:02:57.5]} 2...
Nf6 {[%clk 0:02:58.2]} 3. d4 {[%clk 0:02:53.3]} 3... Nxe4 {[%clk 0:02:57.1]} 4.
Bd3 {[%clk 0:02:49]} 4... d5 {[%clk 0:02:56.1]} 5. Nxe5 {[%clk 0:02:46.6]} 5...
Nd7 {[%clk 0:02:55.5]} 6. Nxd7 {[%clk 0:02:45.9]} 6... Bxd7 {[%clk 0:02:54.3]}
7. O-O {[%clk 0:02:46.8]} 7... Bd6 {[%clk 0:02:52.6]} 8. Nc3 {[%clk 0:02:45.9]}
8... Nxc3 {[%clk 0:02:51.7]} 9. bxc3 {[%clk 0:02:46.8]} 9... O-O {[%clk
0:02:51]} 10. Qh5 {[%clk 0:02:46.8]} 10... f5 {[%clk 0:02:50.7]} 11. Re1 {[%clk
0:02:44.5]} 11... g6 {[%clk 0:02:43.9]} 12. Qf3 {[%clk 0:02:41.4]} 12... c6
{[%clk 0:02:43.9]} 13. Bf4 {[%clk 0:02:41.2]} 13... Qc7 {[%clk 0:02:43.3]} 14.
Bxd6 {[%clk 0:02:13.8]} 14... Qxd6 {[%clk 0:02:44.2]} 15. Re5 {[%clk 0:01:41.8]}
15... b5 {[%clk 0:02:39]} 16. Rae1 {[%clk 0:01:37.5]} 16... Rae8 {[%clk
0:02:31.7]} 17. h4 {[%clk 0:01:21.5]} 17... Qf6 {[%clk 0:02:25.3]} 18. h5 {[%clk
0:01:20.1]} 18... Qh4 {[%clk 0:02:18.6]} 19. hxg6 {[%clk 0:01:13.1]} 19... hxg6
{[%clk 0:02:19.5]} 20. g3 {[%clk 0:01:06.9]} 20... Qf6 {[%clk 0:02:17.3]} 21.
Kg2 {[%clk 0:00:57.9]} 21... Kg7 {[%clk 0:01:41.8]} 22. Qe3 {[%clk 0:00:45.5]}
22... f4 {[%clk 0:01:21.3]} 23. gxf4 {[%clk 0:00:40.6]} 23... Qh4 {[%clk
0:01:05.5]} 24. Qg3 {[%clk 0:00:30.8]} 24... Qf6 {[%clk 0:00:51]} 25. Qg5 {[%clk
0:00:21.6]} 25... Qxg5+ {[%clk 0:00:31.9]} 26. fxg5 {[%clk 0:00:20.6]} 26...
Rxe5 {[%clk 0:00:31.2]} 27. Rxe5 {[%clk 0:00:18.6]} 27... Rf4 {[%clk 0:00:17.7]}
28. Re7+ {[%clk 0:00:10.6]} 28... Rf7 {[%clk 0:00:18.2]} 29. Rxf7+ {[%clk
0:00:09.6]} 29... Kxf7 {[%clk 0:00:19.1]} 30. Kf3 {[%clk 0:00:08.7]} 30... Be6
{[%clk 0:00:16.4]} 31. Kf4 {[%clk 0:00:08.5]} 31... Bh3 {[%clk 0:00:02.7]} 32.
Ke5 {[%clk 0:00:08.5]} 1-0